bitfinex/quotes_ETHUSD_20260207
["timestamp","ask_amount","ask_price","bid_price","bid_amount"]
[1770460898149,1.06446925,2007.1,2006.6,1.29570654]
[1770460898359,2.50168407,2007.4,2006.6,1.245871]
[1770460898662,1.81273412,2007.3,2006.6,1.87390157]
[1770460898851,1.06443252,2007.2,2006.6,1.87390157]
[1770460899430,1.25625769,2007.1,2006.5,1.29577361]
[1770460899634,0.7483016,2007.3,2006.5,1.24593807]
[1770460899934,1.06407829,2007.2,2006.5,1.24593807]
[1770460900134,1.06407829,2007.1,2006.5,1.24593807]
[1770460900344,0.7483016,2007.3,2006.5,1.24593807]
[1770460900543,2.63339365,2007.2,2006.5,1.87401199]
[1770460900757,1.06284248,2007.1,2006.5,0.62807392]
[1770460900959,1.25625769,2007.1,2006.4,1.24698244]
[1770460902251,1.06233929,2007.0,2006.4,0.001]
[1770460902452,1.25625769,2007.0,2006.4,0.001]
[1770460903074,1.24562437,2007.1,2006.4,0.001]
[1770460903561,2.50188206,2007.1,2006.4,0.001]
[1770460903864,0.78090567,2007.0,2006.4,0.001]
[1770460905269,1.25625769,2006.8,2006.4,0.001]
[1770460905556,1.24568572,2007.0,2006.4,0.001]
[1770460905746,1.0614641,2006.9,2006.4,0.001]
[1770460905953,1.24568572,2007.0,2006.4,0.001]
[1770460906134,1.06190121,2006.9,2006.4,0.001]
[1770460906335,0.85462344,2006.9,2006.4,0.001]
[1770460907241,1.24569322,2007.0,2006.4,0.001]
[1770460907445,1.2455992,2007.1,2006.4,0.05083233]
[1770460907662,5.73031336,2007.3,2006.5,0.04982487]
[1770460907663,0.7483016,2007.3,2006.5,0.04982487]
[1770460907851,2.50165139,2007.4,2006.5,0.04982487]
[1770460908157,2.50165139,2007.4,2006.4,0.05082487]
[1770460908158,2.31745823,2007.3,2006.4,0.05082487]
[1770460908353,1.06120054,2007.2,2006.4,0.05082487]
[1770460908741,1.06120054,2007.2,2006.4,0.001]
[1770460908941,1.06120054,2007.2,2006.6,0.001]
[1770460909143,2.66304009,2007.2,2006.6,0.001]
[1770460909341,1.60183955,2007.2,2006.6,0.001]
[1770460909662,0.002,2007.1,2006.6,0.001]
[1770460921266,0.002,2007.1,2006.6,0.05081244]
[1770460921780,0.002,2007.1,2006.6,1.24707194]
[1770460922152,0.002,2007.3,2006.6,1.24707194]
[1770460922354,0.002,2007.3,2006.8,0.001]
[1770460922563,0.002,2007.3,2006.8,0.7985279]
[1770460922564,0.002,2006.9,2006.8,0.7985279]
[1770460922768,0.002,2007.3,2006.8,0.7985279]
[1770460923057,0.002,2007.3,2006.8,1.9947874]
[1770460923277,0.002,2007.3,2006.9,1.1962595]
[1770460923278,0.002,2007.1,2006.9,1.1962595]
[1770460923476,0.002,2007.8,2007.0,1.246062]
[1770460924282,0.002,2007.8,2007.2,1.1962595]
[1770460925185,0.002,2007.8,2007.2,1.24605703]
[1770460925401,0.002,2007.8,2007.4,1.1962595]
[1770460925586,0.002,2008.0,2007.4,1.1962595]
[1770460926409,0.002,2008.0,2007.3,0.24916352]
[1770460926572,0.002,2008.0,2007.4,1.24539204]
[1770460928310,1.20146644,2008.0,2007.3,0.24916352]
[1770460928510,2.44454836,2007.9,2006.8,4.9840492]
[1770460928816,2.44454836,2007.9,2006.9,0.04982809]
[1770460929777,1.19946644,2007.9,2006.9,1.24600418]
[1770460930106,0.002,2008.2,2007.2,1.19617609]
[1770460930295,0.002,2008.2,2007.4,1.19617609]
[1770460930497,0.002,2008.2,2007.6,1.19617609]
[1770460930883,0.002,2008.2,2007.7,1.44530802]
[1770460932511,0.002,2008.2,2007.8,2.44132002]
[1770460932923,0.002,2009.6,2008.4,1.19617609]
[1770460933216,0.002,2009.6,2008.7,1.25329199]
[1770460933379,0.002,2009.6,2008.8,0.0571159]
[1770460933781,0.002,2009.6,2008.7,1.19617609]
[1770460934006,0.002,2009.6,2008.4,1.19617609]
[1770460934388,2.54290757,2009.4,2008.1,1.19617609]
[1770460934679,1.29675082,2009.2,2007.9,1.19617609]
[1770460934882,1.29675082,2009.2,2008.1,1.24491572]
[1770460935590,0.002,2008.2,2008.1,1.24491572]
[1770460936001,0.002,2008.2,2008.1,1.29471403]
[1770460936596,0.002,2008.2,2008.1,0.04979831]
[1770460936801,0.002,2008.2,2007.8,1.24510849]
[1770460937001,0.002,2008.2,2007.8,1.2949068]
[1770460938017,0.002,2008.2,2007.8,1.2949]
[1770460938227,0.002,2008.2,2008.0,1.24497118]
[1770460938410,0.002,2008.2,2008.1,1.24495792]
[1770460938586,0.002,2008.2,2008.0,1.29481823]
[1770460938787,0.04979846,2008.9,2008.1,0.68229242]
[1770460938986,1.24637996,2009.1,2008.2,0.04979831]
[1770460939209,1.29614016,2009.1,2008.2,0.04979831]
[1770460939413,1.2463417,2009.1,2008.2,0.04979831]
[1770460940013,1.29875082,2009.1,2008.3,0.04979335]
[1770460940310,0.25430731,2009.0,2008.3,0.04979335]
[1770460940518,0.002,2009.1,2008.4,1.24477195]
[1770460940714,0.002,2009.1,2008.4,1.29457026]
[1770460941716,0.002,2009.1,2008.5,0.04978839]
[1770460942592,0.002,2009.1,2008.6,1.24464801]
[1770460942795,0.002,2009.1,2008.5,1.24467102]
[1770460943009,0.002,2009.1,2008.5,1.87698951]
[1770460943407,1.29875082,2009.1,2008.5,1.29450286]
[1770460943807,1.29875082,2009.1,2008.5,0.04979831]
[1770460944008,1.29875082,2009.1,2008.5,1.29450201]
[1770460944329,1.29875082,2009.1,2008.5,0.04979831]
[1770460944518,1.29875082,2009.1,2008.4,1.24472709]
[1770460944717,2.54312486,2009.1,2008.5,0.04979831]
[1770460944899,0.75700492,2009.0,2008.5,0.04979831]
[1770460945231,0.80680338,2009.0,2008.5,0.04979831]
[1770460945601,1.29675082,2008.9,2008.0,1.24498614]
[1770460945794,1.29675082,2008.9,2008.0,0.04979831]
[1770460945996,1.29675082,2008.7,2007.8,1.24513677]
[1770460946214,1.29675082,2008.7,2007.7,1.29496345]
[1770460946598,1.24464801,2008.6,2007.7,1.29496345]
[1770460946825,1.29675082,2008.4,2007.7,0.04979831]
[1770460947398,0.62232401,2008.5,2007.7,1.29495335]
[1770460947631,1.91907483,2008.5,2007.7,1.29495335]
[1770460948030,1.91907483,2008.5,2008.2,0.001]
[1770460948335,1.91907483,2008.5,2007.7,1.29495335]
[1770460948539,0.31637228,2008.4,2008.0,0.001]
[1770460948725,1.56119948,2008.4,2008.0,0.001]
[1770460949924,2.8579503,2008.4,2008.0,0.05079831]
[1770460950121,2.8579503,2008.4,2008.0,0.001]
[1770460951255,1.29675082,2008.3,2008.0,0.001]
[1770460951561,1.58254585,2008.2,2007.6,0.001]
[1770460951770,1.29675082,2008.2,2007.7,0.04979831]
[1770460952067,1.29675082,2008.2,2007.6,0.001]
[1770460952224,1.29675082,2008.0,2007.4,0.001]
[1770460952419,1.29675082,2008.0,2007.1,1.24654499]
[1770460952637,1.34654913,2007.9,2007.2,1.24551149]
[1770460952856,1.29675082,2007.9,2007.2,1.24551149]
[1770460953430,1.24514393,2007.8,2007.1,1.86946611]
[1770460953660,1.29494224,2007.8,2007.1,1.86946611]
[1770460954164,0.04979831,2007.7,2007.1,1.86946611]
[1770460954365,0.04979831,2007.7,2007.2,0.68520215]
[1770460954539,0.04979831,2007.6,2007.1,0.001]
[1770460955170,0.04979831,2007.5,2007.1,0.001]
[1770460955531,1.29517046,2007.5,2007.1,0.001]
[1770460956154,2.52992229,2007.5,2007.1,0.001]
[1770460956354,0.75110428,2007.4,2007.1,0.001]
[1770460956855,0.04979831,2007.3,2007.1,0.001]
[1770460957055,0.0470947,2007.3,2007.1,0.001]
[1770460957433,1.2452407,2007.7,2007.1,0.001]
[1770460957761,1.29244184,2007.5,2007.1,0.001]
[1770460957932,0.67443664,2007.5,2007.1,0.001]
[1770460958629,0.0470947,2007.5,2007.1,0.001]
[1770460958833,1.24512048,2007.9,2007.1,0.001]
[1770460959034,1.29491894,2007.9,2007.1,0.001]
[1770460959255,0.0470947,2007.8,2007.1,0.001]
[1770460959644,0.0470947,2007.7,2007.1,0.001]
[1770460960041,1.24518683,2007.8,2007.1,0.001]
[1770460960245,2.03556142,2007.7,2007.1,0.001]
[1770460960445,2.08265612,2007.7,2007.1,0.001]
[1770460960646,0.0470947,2007.6,2007.1,0.001]
[1770460960849,0.0470947,2007.6,2007.3,0.001]
[1770460961050,0.0470947,2007.5,2007.3,0.001]
[1770460962153,1.29242558,2007.5,2007.3,0.001]
[1770460962347,1.99985462,2007.5,2007.3,0.001]
[1770460962550,0.75452374,2007.5,2007.3,0.001]
[1770460964462,0.0470947,2007.5,2007.3,0.001]
[1770460964641,1.24498458,2008.1,2007.3,0.001]
[1770460964970,0.0470947,2008.0,2007.3,0.001]
[1770460966454,0.0470947,2008.0,2007.3,1.2809769]
[1770460966641,0.0470947,2008.0,2007.4,1.24539204]
[1770460966971,0.002,2008.2,2007.5,0.75079371]
[1770460967264,0.0470947,2008.1,2007.5,0.75079371]
[1770460967768,0.0470947,2008.0,2007.5,0.75079371]
[1770460968562,0.0470947,2008.0,2007.6,1.24526798]
[1770460969553,0.0470947,2008.0,2007.5,1.99609835]
[1770460969754,0.0470947,2008.0,2007.6,0.69775788]
[1770460971263,0.0470947,2008.0,2007.6,1.94297849]
[1770460973062,0.002,2008.2,2007.3,1.24641082]
[1770460973063,2.47970975,2008.1,2007.3,1.24641082]
[1770460973265,1.28455029,2008.0,2007.3,0.001]
[1770460973466,1.24508192,2007.9,2007.3,0.001]
[1770460973662,0.002,2007.8,2007.3,0.001]
[1770460978477,0.002,2007.8,2007.3,0.67876229]
[1770460978772,0.002,2007.8,2007.4,1.2799769]
[1770460979382,0.002,2007.8,2007.5,0.04980893]
[1770460979782,0.002,2007.8,2007.6,1.24526798]
[1770460979975,0.002,2008.0,2007.6,1.24526798]
[1770460980170,0.002,2008.0,2007.7,0.62762637]
[1770460981065,0.002,2008.2,2007.7,0.62762637]
[1770460982187,0.002,2008.2,2007.7,1.87277926]
[1770460982954,0.002,2008.2,2007.7,0.62762637]
[1770460983159,0.05179846,2008.2,2007.7,1.872825]
[1770460983388,0.002,2008.2,2007.7,1.872825]
[1770460983682,0.002,2008.2,2007.8,0.68538752]
[1770460983850,0.04979846,2008.6,2007.9,1.2799769]
[1770460984057,0.05179846,2009.1,2007.9,1.2799769]
[1770460984256,0.002,2009.1,2008.1,1.2799769]
[1770460984497,0.002,2009.1,2008.2,0.25249968]
[1770460984798,0.05179846,2009.1,2008.2,1.53247658]
[1770460985101,1.7052052,2008.8,2008.2,0.25249968]
[1770460985253,0.04979846,2008.7,2007.9,1.24505323]
[1770460986357,0.002,2008.0,2007.9,1.24505323]
[1770460986606,0.04979846,2008.7,2007.9,1.24505323]
[1770460986958,0.002,2008.2,2007.9,1.24505323]
[1770460987172,0.002,2008.2,2007.8,0.73619158]
[1770460987376,0.002,2008.2,2007.8,1.24613972]
[1770460989718,0.002,2008.2,2007.8,0.001]
[1770460992578,0.002,2008.2,2007.5,4.98231138]
[1770460992579,1.26232142,2008.1,2007.5,0.001]
[1770460993305,0.05179846,2008.2,2007.5,0.001]
[1770460993503,1.31411988,2008.2,2007.5,0.001]
[1770460993890,1.26232142,2008.0,2007.5,0.001]
[1770460994091,0.25072793,2007.9,2007.5,0.001]
[1770460994288,1.51304935,2007.9,2007.3,0.001]
[1770460995919,2.50746535,2007.8,2007.3,0.001]
[1770460996713,1.26232142,2007.7,2007.3,0.001]
[1770460996918,0.25074654,2007.6,2007.3,0.001]
[1770460997292,1.51306796,2007.6,2007.1,0.001]
[1770460998619,0.25074654,2007.6,2007.1,0.001]
[1770460998799,2.50747652,2007.8,2007.5,0.001]
[1770460999195,1.26232142,2007.8,2007.5,0.001]
[1770460999505,2.50746915,2007.8,2007.5,0.001]
[1770461000095,0.30052639,2007.9,2007.5,0.001]
[1770461000310,0.002,2008.0,2007.5,0.001]
[1770461001294,1.26432142,2008.0,2007.5,0.001]
[1770461001521,1.26432142,2008.0,2007.3,0.001]
[1770461001522,1.31211988,2007.9,2007.3,0.001]
[1770461001815,1.26232142,2007.8,2007.3,0.001]
[1770461002014,1.31211988,2007.8,2007.3,0.001]
[1770461002591,1.24520595,2007.7,2007.3,0.001]
[1770461002796,0.80361343,2007.6,2007.3,0.001]
[1770461004926,2.04894179,2007.6,2007.3,0.001]
[1770461005125,3.31126321,2007.6,2007.3,0.001]
[1770461005528,2.04894179,2007.6,2007.3,0.001]
[1770461006326,3.31126321,2007.6,2007.1,0.001]
[1770461006536,0.82922116,2007.5,2007.1,0.001]
[1770461006706,0.04979846,2007.4,2007.1,0.001]
[1770461007228,3.38669354,2007.5,2007.1,0.001]
[1770461007431,2.55747238,2007.5,2007.1,0.001]
[1770461008325,1.26232142,2007.4,2007.1,0.001]
[1770461008512,0.04979846,2007.3,2007.1,0.001]
[1770461008707,1.26232142,2007.2,2006.8,0.001]
[1770461008919,2.50767094,2007.5,2006.8,0.001]
[1770461009117,1.24545409,2007.3,2006.8,0.001]
[1770461009318,0.04979846,2007.2,2006.8,0.001]
[1770461009519,0.67748078,2007.2,2006.8,0.001]
[1770461010631,0.04979846,2007.2,2006.8,0.001]
[1770461010811,0.04979846,2007.6,2006.8,1.21846291]
[1770461011015,0.04979846,2007.8,2006.8,1.21846291]
[1770461011214,1.24520595,2007.7,2007.0,0.001]
[1770461011416,0.04979846,2007.6,2007.0,0.001]
[1770461011726,0.05179846,2007.6,2007.0,0.74579745]
[1770461012237,0.002,2007.6,2007.0,0.74579745]
[1770461013420,0.002,2007.6,2007.1,1.24557819]
[1770461015638,0.002,2007.6,2007.1,2.4630411]
[1770461017238,0.002,2007.6,2007.2,1.18671472]
[1770461017447,0.002,2007.6,2007.2,0.81604507]
[1770461018541,0.002,2007.6,2007.3,1.24545409]
[1770461023219,0.002,2007.6,2007.2,1.24546723]
[1770461023838,0.002,2007.6,2007.1,1.24553169]
[1770461024043,0.002,2007.6,2007.2,1.24551383]
[1770461024338,0.002,2007.6,2007.2,0.001]
[1770461024715,0.002,2007.4,2007.2,0.001]
[1770461025514,0.002,2007.4,2007.0,0.001]
[1770461025722,0.002,2007.4,2006.7,0.001]
[1770461025723,1.29878711,2007.4,2006.7,0.001]
[1770461026140,1.29678711,2007.2,2006.7,0.001]
[1770461026342,0.25422412,2007.1,2006.7,0.001]
[1770461027042,0.25422412,2007.1,2006.7,0.002]
[1770461027243,1.24739356,2007.4,2006.7,0.002]
[1770461027536,1.24739356,2007.4,2006.7,0.001]
[1770461027537,1.29678711,2007.2,2006.7,0.001]
[1770461028218,1.24557819,2007.1,2006.7,0.001]
[1770461028425,1.24557819,2007.1,2006.7,0.002]
[1770461028847,2.54234595,2007.2,2006.7,0.002]
[1770461029054,0.75242557,2007.1,2006.7,0.002]
[1770461032559,0.04979846,2007.2,2006.7,0.002]
[1770461032755,0.04979846,2007.3,2006.7,0.002]
[1770461033663,1.24551614,2007.2,2006.7,0.002]
[1770461033862,0.04979846,2007.1,2006.7,0.002]
[1770461036548,1.24744009,2007.4,2006.7,0.002]
[1770461036738,0.75754822,2007.3,2006.7,0.002]
[1770461037360,0.75754822,2007.3,2006.7,1.18871472]
[1770461037572,0.04979846,2007.2,2006.9,0.001]
[1770461037940,0.002,2007.1,2006.9,0.001]
[1770461038865,0.002,2007.1,2007.0,0.001]
[1770461039542,0.62991502,2007.1,2006.9,0.001]
[1770461039857,0.04979846,2007.0,2006.9,0.001]
[1770461040056,1.29543871,2007.0,2006.9,0.001]
[1770461040473,1.29678711,2006.9,2006.4,0.001]
[1770461040649,1.60581114,2006.8,2006.4,0.002]
[1770461041647,0.30902403,2006.8,2006.4,0.002]
[1770461041975,0.04979846,2006.9,2006.3,1.24605826]
[1770461042170,0.04979846,2006.9,2006.4,0.002]
[1770461042359,0.04979846,2006.9,2006.3,0.002]
[1770461042556,0.04979846,2007.0,2006.3,1.18871472]
[1770461042968,0.05179846,2007.1,2006.3,1.18871472]
[1770461043271,0.05179846,2007.1,2006.4,1.80411614]
[1770461043769,0.05179846,2007.1,2006.5,0.002]
[1770461044356,0.05179846,2007.1,2006.5,1.24795066]
[1770461044671,1.29678711,2007.0,2006.2,1.24710899]
[1770461044850,1.34658557,2006.9,2006.3,0.002]
[1770461045171,2.60202546,2006.8,2006.3,0.002]
[1770461045546,0.04979846,2006.7,2006.3,0.002]
[1770461046676,1.24588856,2006.6,2006.3,0.002]
[1770461046992,1.24588856,2006.6,2006.2,0.001]
[1770461047285,1.24588856,2006.6,2005.9,0.001]
[1770461047286,1.23679159,2006.5,2005.9,0.001]
[1770461047486,1.24588856,2006.6,2006.0,0.002]
[1770461047670,0.62792413,2006.5,2006.0,0.002]
[1770461048775,1.29565173,2006.7,2006.0,0.002]
[1770461049083,1.29565173,2006.7,2006.1,0.002]
[1770461049275,1.24585327,2006.7,2006.0,0.002]
[1770461049477,0.04979846,2006.6,2006.0,0.002]
[1770461049885,1.24585327,2006.7,2006.0,0.002]
[1770461050065,0.62788003,2006.6,2006.0,0.002]
[1770461050378,0.04979846,2006.8,2006.1,1.18514677]
[1770461050572,1.24567051,2007.0,2006.2,0.002]
[1770461050774,0.002,2006.5,2006.2,1.24813697]
[1770461051081,1.29742157,2007.1,2006.3,1.18214677]
[1770461051269,0.30953949,2007.0,2006.3,1.18214677]
[1770461051473,0.30953949,2007.0,2006.4,0.002]
[1770461051668,0.30953949,2007.0,2006.3,0.002]
[1770461053281,1.24570232,2006.9,2006.3,0.002]
[1770461053783,0.30953949,2007.0,2006.3,0.002]
[1770461053966,1.29739653,2007.1,2006.3,1.9257481]
[1770461055788,0.05179846,2007.1,2006.4,1.24601275]
[1770461055973,0.002,2007.1,2006.5,0.002]
[1770461056174,0.05179846,2007.1,2006.5,0.002]
[1770461056795,1.24549874,2007.3,2006.5,0.002]
[1770461056993,0.79251698,2007.2,2006.5,0.81860159]
[1770461057186,0.79251698,2007.2,2006.5,2.00074836]
[1770461058093,1.24557819,2007.1,2006.5,2.06451715]
[1770461058464,0.79251698,2007.2,2006.5,2.06451715]
[1770461058671,2.58702023,2007.4,2006.6,0.82306916]
[1770461058868,1.28699996,2007.4,2006.6,2.00521593]
[1770461059195,1.28699996,2007.4,2006.7,0.002]
[1770461062108,1.29998869,2007.3,2006.7,0.002]
[1770461062691,0.002,2007.0,2006.7,0.002]
[1770461062888,0.002,2007.0,2006.7,0.70681302]
[1770461063537,0.002,2007.0,2006.7,0.002]
[1770461066413,1.34158715,2007.0,2006.7,0.002]
[1770461066902,0.04159846,2007.0,2006.4,1.24600992]
[1770461067092,0.04159846,2007.0,2006.5,1.24593833]
[1770461067297,0.04159846,2007.0,2006.5,1.24793833]
[1770461067489,0.002,2007.0,2006.6,0.74139593]
[1770461068313,0.002,2007.0,2006.5,0.002]
[1770461070112,0.002,2007.4,2006.7,1.18214677]
[1770461070314,0.002,2007.4,2006.5,1.18214677]
[1770461070315,1.30198869,2007.4,2006.5,1.18214677]
[1770461070480,2.54739007,2007.4,2006.5,1.18214677]
[1770461070685,0.002,2007.4,2006.5,1.18214677]
[1770461071415,0.002,2007.4,2006.7,1.18214677]
[1770461071601,0.002,2007.4,2006.8,1.18214677]
[1770461071914,0.002,2007.4,2006.9,1.24570232]
[1770461072218,0.002,2007.4,2007.0,0.74106584]
[1770461074019,0.002,2007.4,2007.1,1.24557819]
[1770461075104,0.002,2007.2,2007.1,1.24557819]
[1770461077908,0.002,2007.2,2007.0,1.98665694]
[1770461078229,0.002,2007.2,2006.9,0.001]
[1770461079709,1.18083476,2007.2,2006.9,0.001]
[1770461080749,0.002,2007.2,2006.9,0.001]
[1770461081100,1.18083476,2007.2,2006.7,0.001]
[1770461081295,1.18083476,2007.2,2006.7,0.002]
[1770461082505,0.002,2007.2,2006.7,0.002]
[1770461083020,0.002,2007.2,2006.7,0.74306039]
[1770461085602,0.002,2007.2,2006.8,1.2457644]
[1770461086116,0.002,2007.2,2006.9,0.001]
[1770461086316,0.002,2007.2,2006.9,1.18016106]
[1770461087402,0.002,2007.2,2006.9,1.18116106]
[1770461087695,0.002,2007.0,2006.9,1.18116106]
[1770461087902,0.002,2007.2,2007.0,2.42480131]
[1770461088830,0.002,2007.4,2007.0,1.24564025]
[1770461089128,0.002,2007.4,2007.1,0.001]
[1770461089925,0.002,2007.4,2007.1,1.18016106]
[1770461091130,0.002,2007.6,2007.1,1.18016106]
[1770461096317,0.002,2007.6,2007.3,1.17916106]
[1770461096541,0.002,2007.6,2007.3,1.91993524]
[1770461096943,0.002,2007.6,2007.3,0.74077418]
[1770461098549,0.002,2007.8,2007.3,1.98617526]
[1770461098737,0.002,2007.8,2007.4,0.001]
[1770461100023,0.002,2007.6,2007.4,0.001]
[1770461100225,0.002,2007.6,2007.4,0.81592908]
[1770461100421,0.002,2007.6,2007.4,2.06128328]
[1770461101244,0.002,2007.8,2007.4,2.06128328]
[1770461101245,0.002,2007.8,2007.4,3.25260118]
[1770461101617,0.002,2007.8,2007.4,3.27215034]
[1770461101854,0.002,2007.8,2007.4,3.27115034]
[1770461102041,0.002,2007.8,2007.5,0.89945587]
[1770461102243,0.002,2008.0,2007.6,1.17916106]
[1770461102556,0.002,2008.0,2007.6,1.24626798]
[1770461102918,0.002,2008.0,2007.7,1.17916106]
[1770461103347,0.002,2008.0,2007.8,0.001]
[1770461103657,0.002,2008.3,2007.8,1.18016106]
[1770461103832,0.002,2008.5,2007.7,1.17916106]
[1770461104038,0.002,2008.7,2007.9,1.17916106]
[1770461104366,0.002,2008.9,2008.0,1.17916106]
[1770461104518,0.002,2008.9,2008.2,1.17916106]
[1770461106840,0.002,2008.9,2008.4,1.23429478]
[1770461107929,0.002,2008.9,2008.3,1.24483393]
[1770461108130,0.002,2008.9,2008.4,0.74584645]
[1770461108651,0.002,2008.9,2008.4,1.99058001]
[1770461109129,0.002,2009.4,2008.4,1.99058001]
[1770461109130,0.002,2009.4,2008.5,1.23429478]
[1770461110051,1.26261259,2009.4,2008.4,1.99058001]
[1770461110243,1.26261259,2009.4,2008.4,1.24473356]
[1770461110244,1.26061259,2009.3,2008.4,1.24473356]
[1770461110751,2.50680959,2009.4,2008.2,1.24757996]
[1770461111325,1.26061259,2009.3,2008.2,1.24757996]
[1770461111825,1.26061259,2009.3,2008.6,0.001]
[1770461112026,0.002,2008.7,2008.6,0.001]
[1770461112747,0.002,2008.7,2008.6,1.24564801]
[1770461112950,0.002,2009.4,2008.7,1.24757996]
[1770461114230,1.26261259,2009.4,2008.6,1.99294918]
[1770461114476,1.26061259,2009.3,2008.6,0.74830117]
[1770461114772,1.26061259,2009.3,2008.6,0.001]
[1770461114773,1.26061259,2009.1,2008.6,0.001]
[1770461116061,2.50495138,2009.1,2008.6,0.001]
[1770461116561,1.26061259,2009.0,2008.6,0.001]
[1770461116766,1.26061259,2008.8,2008.4,0.001]
[1770461116938,2.00890492,2008.8,2008.4,0.001]
[1770461117331,1.26061259,2008.8,2008.4,0.001]
[1770461117841,2.50496943,2009.1,2008.4,0.001]
[1770461118050,2.50496943,2009.1,2008.1,1.14857996]
[1770461118829,1.49497898,2009.2,2008.2,2.49247588]
[1770461119028,1.49495651,2009.2,2008.3,1.24757996]
[1770461119333,1.51129031,2009.2,2008.4,0.24924759]
[1770461119536,1.26061259,2009.2,2008.4,0.24924759]
[1770461119962,2.50489215,2009.2,2008.4,0.24924759]
[1770461120363,1.26061259,2009.2,2008.4,0.24924759]
[1770461120744,1.26061259,2009.2,2008.4,1.49682755]
[1770461121257,1.26261259,2009.4,2008.5,1.24470998]
[1770461121433,1.26261259,2009.4,2008.6,0.77203775]
[1770461123239,1.2442144,2009.3,2008.6,2.01664648]
[1770461123464,2.50482699,2009.3,2008.6,2.01664648]
[1770461123767,1.26061259,2009.2,2008.6,0.77203775]
[1770461123936,1.2442144,2009.3,2008.6,1.24461986]
[1770461124135,2.50680964,2009.4,2008.6,1.24461986]
[1770461124467,0.002,2009.4,2008.6,2.49219982]
[1770461124636,0.002,2009.4,2008.7,1.24757996]
[1770461124832,0.002,2009.4,2008.8,1.49679994]
[1770461125047,0.002,2009.2,2008.8,0.24921998]
[1770461125466,0.002,2009.2,2008.9,1.24446214]
[1770461126045,0.002,2009.2,2008.8,1.49369791]
[1770461126368,1.26261259,2009.2,2008.5,1.24470921]
[1770461126550,1.26261259,2009.2,2008.4,1.49398337]
[1770461126933,1.26261259,2009.2,2008.4,0.24924759]
[1770461127139,1.26261259,2009.2,2008.5,1.24467166]
[1770461127347,1.26261259,2009.2,2008.5,1.24468188]
[1770461127550,1.24433826,2009.1,2008.5,1.89207991]
[1770461128339,2.50691243,2009.2,2008.5,1.89209393]
[1770461128559,1.26061259,2009.1,2008.4,0.24924759]
[1770461128758,1.26061259,2009.1,2008.3,0.001]
[1770461129540,1.26061259,2008.9,2008.3,0.001]
[1770461131573,2.50513668,2008.8,2008.3,0.001]
[1770461132766,1.24452409,2008.8,2008.3,0.001]
[1770461133068,1.26061259,2008.6,2008.3,0.001]
[1770461133244,1.26061259,2008.6,2008.0,0.001]
[1770461133775,2.50532257,2008.5,2008.0,0.001]
[1770461136268,1.25147803,2008.4,2008.0,0.001]
[1770461137157,1.25147803,2008.4,2008.2,0.001]
[1770461137470,0.2496188,2008.3,2008.0,0.001]
[1770461138263,1.25147803,2008.3,2007.5,0.001]
[1770461138481,1.25147803,2008.2,2007.5,0.001]
[1770461138683,1.41099393,2008.1,2007.2,0.001]
[1770461138857,1.25147803,2008.1,2007.2,0.001]
[1770461139390,2.49628823,2008.4,2007.5,2.45214384]
[1770461139696,1.25147803,2008.3,2007.5,1.24532476]
[1770461139981,1.2448102,2008.4,2007.5,2.45214275]
[1770461140483,6.23056586,2008.5,2007.5,2.45214275]
[1770461141356,1.25147803,2008.4,2007.5,2.45214275]
[1770461141577,1.87453462,2008.3,2007.6,0.74337086]
[1770461142256,1.87453462,2008.3,2007.5,1.24531713]
[1770461142957,1.24489592,2008.2,2007.5,1.20681799]
[1770461143767,1.24488253,2008.3,2007.5,1.20681799]
[1770461144357,1.24480952,2008.4,2007.5,1.20681799]
[1770461144559,1.24480952,2008.4,2007.6,1.82564916]
[1770461145072,1.24480952,2008.4,2007.7,1.24520595]
[1770461146101,2.49628755,2008.4,2007.6,1.86407395]
[1770461146388,1.25147803,2008.3,2007.5,1.24528457]
[1770461146556,1.25147803,2008.3,2007.5,1.24532559]
[1770461147685,1.24489592,2008.2,2007.4,1.24539204]
[1770461148688,1.24489592,2008.2,2007.3,2.45222632]
[1770461148882,2.49637395,2008.2,2007.3,2.45222632]
[1770461149177,3.74192809,2008.2,2007.8,0.001]
[1770461149359,3.74392809,2008.2,2007.4,0.80544121]
[1770461149676,2.49245006,2008.2,2007.5,1.24633001]
[1770461150696,1.25147803,2008.1,2007.5,0.001]
[1770461151783,2.49649795,2008.0,2007.5,0.001]
[1770461151986,1.99913579,2007.9,2007.2,1.24648343]
[1770461152293,6.22717704,2008.2,2007.4,1.20681799]
[1770461152294,2.49247953,2008.2,2007.4,1.20681799]
[1770461152478,1.24690184,2008.2,2007.4,1.20681799]
[1770461152880,1.25147803,2008.1,2007.2,0.001]
[1770461153085,1.25147803,2008.1,2007.3,1.24544511]
[1770461153486,1.25147803,2008.1,2007.2,0.001]
[1770461154000,1.25147803,2007.9,2007.2,0.001]
[1770461154172,0.2496498,2007.8,2007.2,0.001]
[1770461154576,1.50112783,2007.8,2007.1,0.001]
[1770461155795,1.50112783,2007.8,2007.0,0.001]
[1770461156002,1.24520595,2007.7,2007.0,0.001]
[1770461156992,2.49668398,2007.7,2007.0,0.001]
[1770461157302,0.77271576,2007.6,2006.9,0.001]
[1770461157500,1.49483838,2007.8,2006.9,1.2576027]
[1770461157997,1.49483838,2007.8,2006.9,1.20781799]
[1770461158301,1.49481107,2007.8,2007.1,1.20681799]
[1770461158996,1.2451156,2007.9,2007.1,1.20681799]
[1770461160906,4.98011491,2008.0,2007.2,1.24551614]
[1770461161083,6.23159294,2008.0,2007.2,1.24551614]
[1770461161496,6.23159294,2008.0,2007.3,0.001]
[1770461161694,6.23359294,2008.0,2007.3,0.001]
[1770461161891,7.47961288,2008.0,2007.3,0.74455969]
[1770461162277,3.74451789,2008.0,2007.3,0.74455969]
[1770461162504,0.002,2008.0,2007.4,1.20681799]
[1770461163004,0.002,2008.0,2007.6,1.20681799]
[1770461163579,0.002,2008.0,2007.3,1.98998641]